Cogmind - Beta 16 @@@ ROGUE MODE // 2025.11.10 @ 14:56:48 Player: Maxfecteau Result: Destroyed self with YOLO Cannon Performance ------------- Evolutions (0) 0 Regions Visited (3) 600 Robots Destroyed (0) 0 Value Destroyed (0) 0 Prototype IDs (23) 460 Alien Tech Used (0) 0 Bonus (300) 300 TOTAL SCORE: 1360 Bonus ------- Aligned with FarCom 300 Cogmind --------- Core Integrity 0/250 Matter 280/300 Energy 30/100 System Corruption 0% Temperature Cool (0) Movement Core (350) Ox6 Location -10/Exiles Parts ------- > --- POWER (1) -------- (None) > --- PROPULSION (2) --- (None) > --- UTILITY (2) ------ ECM Suite > --- WEAPON (2) ------- YOLO Cannon > --- INVENTORY (5) ---- Light Ion Engine ECM Suite ECM Suite Peak State ------------ > --- POWER ------------ (None) > --- PROPULSION ------- (None) > --- UTILITY ---------- ECM Suite > --- WEAPON ----------- YOLO Cannon > --- INVENTORY -------- Light Ion Engine ECM Suite ECM Suite [Rating: 21] Favorites ----------- Power None Propulsion None Utility ECM Suite Device ECM Suite Weapon YOLO Cannon Energy Cannon YOLO Cannon Build | -11 -10 -10 -10 ------- Run | Yrd Mat Min Exi Slots Evolved . | . . . . Power . | . . . . Propulsion . | . . . . Utility . | . . . . Weapon . | . . . . Parts Attached 2 | . 1 . 1 Power . | . . . . Engine . | . . . . Core . | . . . . Reactor . | . . . . Propulsion . | . . . . Treads . | . . . . Leg . | . . . . Wheel . | . . . . Hover . | . . . . Flight . | . . . . Utility 1 | . 1 . . Device 1 | . 1 . . Storage . | . . . . Processor . | . . . . Hackware . | . . . . Protection . | . . . . Artifact . | . . . . Weapon 1 | . . . 1 Energy Gun . | . . . . Energy Cannon 1 | . . . 1 Ballistic Gun . | . . . . Ballistic Cannon . | . . . . Launcher . | . . . . Special Weapon . | . . . . Impact Weapon . | . . . . Slashing Weapon . | . . . . Piercing Weapon . | . . . . Special Melee Weapon . | . . . . Unidentified Prototypes . | . . . . Parts Lost . | . . . . Power . | . . . . Propulsion . | . . . . Utility . | . . . . Weapon . | . . . . Highest Loss Streak . | . . . . To Critical Strikes . | . . . . Average Backups 3 | . 1 5 3 Power . | . 1 1 1 Propulsion . | . . . . Utility 1 | . . 2 2 Weapon . | . . 2 . Tool/Special . | . . . . Unused Backups 5 | . . . 5 Power 1 | . . . 1 Propulsion . | . . . . Utility 2 | . . . 2 Weapon 2 | . . . 2 Tool/Special . | . . . . Average Slot Usage (%) 18 | . 1 14 22 Device 12 | . 1 14 14 Energy Cannon 5 | . . . 8 Peak Build Rating 21 | . 1 1 21 Average Rating 9 | . . 1 14 On Entrance . | . . 1 1 Avg Prop Armor Cover (%) . | . . . . Naked Turns 56 | . 56 . . Heaviest Build 20 | . 2 2 20 Greatest Support 3 | 3 3 3 3 Greatest Overweight (x) 6 | . . . 6 Average Overweight (x) . | . . . 1 Largest Inventory Capacity 5 | 5 5 5 5 Average Capacity 5 | 5 5 5 5 Most Carried 5 | 1 5 5 5 Average Carried 3 | . 1 5 3 Final Capacity 5 | 5 5 5 5 Final Carried 5 | 1 5 5 3 Class Distribution -------------------- 100% | Mutant Dominant Class ---------------- Mutant | -10/Materials Mutant | -10/Mines Mutant | -10/Exiles Resources | -11 -10 -10 -10 ----------- Run | Yrd Mat Min Exi Matter Collected 210 | 176 . 34 . Remotely . | . . . . Salvage Created . | . . . . Parts . | . . . . Haulers Intercepted . | . . . . Recyclers Shooed . | . . . . Parts Field Recycled . | . . . . Retrieved Matter . | . . . . Parts Self-Destructed . | . . . . Prevented . | . . . . Parts Restored . | . . . . Kills | -11 -10 -10 -10 ------- Run | Yrd Mat Min Exi Combat Hostiles Destroyed . | . . . . Classes Destroyed . | . . . . Best Kill Streak . | . . . . Combat Bots Only . | . . . . Max Kills in Single Turn . | . . . . Gunslinging . | . . . . Exploded . | . . . . Melee . | . . . . Uniques/NPCs Destroyed . | . . . . Combat | -11 -10 -10 -10 -------- Run | Yrd Mat Min Exi Hostile Shots Fired . | . . . . Missed . | . . . . Hits . | . . . . Damage Taken 467 | . . . 467 Core 268 | . . . 268 Absorbed by Shields . | . . . . Core Remaining (%) 100 | 100 . . . Volleys Fired 5 | . . . 5 Largest 1 | . . . 1 Hottest 100 | . . . 100 Shots Fired 5 | . . . 5 Gun . | . . . . Cannon 5 | . . . 5 Launcher . | . . . . Special . | . . . . Kinetic . | . . . . Thermal 5 | . . . 5 Explosive . | . . . . Electromagnetic . | . . . . Robot Hit Streak . | . . . . Robot Miss Streak . | . . . . Penetration Max . | . . . . Secondary Targets . | . . . . Shots Hit Robots . | . . . . Core Hits . | . . . . Critical Kills . | . . . . Critical Parts Destroyed . | . . . . Critical Strikes . | . . . . Melee Attacks . | . . . . Impact . | . . . . Slashing . | . . . . Piercing . | . . . . Sneak Attacks . | . . . . Combat Hostiles . | . . . . Follow-up Attacks . | . . . . Damage Inflicted . | . . . . Guns . | . . . . Cannons . | . . . . Explosions . | . . . . Melee . | . . . . Ramming . | . . . . Kinetic . | . . . . Thermal . | . . . . Explosive . | . . . . Electromagnetic . | . . . . Impact . | . . . . Slashing . | . . . . Piercing . | . . . . Highest Corruption . | . . . . Average Corruption . | . . . . Corruption Purged . | . . . . Corruption Blocked . | . . . . Overload Shots . | . . . . Overflow Damage . | . . . . Projectiles . | . . . . Explosions . | . . . . Melee . | . . . . Knockbacks . | . . . . Impact . | . . . . Kinetic . | . . . . Secondary . | . . . . Self-Inflicted Damage 364 | . . . 364 Shots 5 | . . . 5 Rammed . | . . . . Targets Rammed . | . . . . Kicked . | . . . . Crushed . | . . . . Highest Temperature 20 | . . . 20 Average Temperature 20 | . . . 20 Received Heat Transfer . | . . . . Siege Activations . | . . . . Martial Activations . | . . . . Shielding Activations . | . . . . Robots Disrupted . | . . . . Combat Hostiles . | . . . . Robots Corrupted . | . . . . Combat Hostiles . | . . . . Parts Fried . | . . . . Impact Corruptions . | . . . . Robots Melted . | . . . . Combat Hostiles . | . . . . Parts Melted . | . . . . Heat Transferred . | . . . . Parts Sabotaged . | . . . . Parts Stolen . | . . . . Parts Stripped . | . . . . Power Chain Reactions . | . . . . Alert | -11 -10 -10 -10 ------- Run | Yrd Mat Min Exi Maximum Alert Level . | . . . . Low Security (%) 100 | 100 100 100 . Level 1 . | . . . . Level 2 . | . . . . Level 3 . | . . . . Level 4 . | . . . . Level 5 . | . . . . High Security . | . . . . Max Security . | . . . . Peak Influence . | . . . . Initial . | . . . . Average . | . . . . Influence Increases . | . . . . Influence Decreases . | . . . . Squads Dispatched . | . . . . Investigation . | . . . . Extermination . | . . . . Reinforcement . | . . . . Assault . | . . . . Garrison . | . . . . Intercept . | . . . . Searches Triggered . | . . . . Construction Impeded . | . . . . Haulers Reinforced . | . . . . Active Scanning Responses . | . . . . Cargo Convoy Interrupts . | . . . . Stealth | -11 -10 -10 -10 --------- Run | Yrd Mat Min Exi Distress Signals . | . . . . Communications Jammed . | . . . . Distress Signals . | . . . . Times Spotted 3 | . 1 2 . Peak Tracking Total 2 | . 1 2 . Tactical Retreats 1 | . . 1 . ECM-based Alert Blocks 2 | . . 2 . Traps | -11 -10 -10 -10 ------- Run | Yrd Mat Min Exi Traps Triggered . | . . . . Indirectly . | . . . . Trap Hack Attempts . | . . . . Triggered . | . . . . Disarmed . | . . . . Reprogrammed . | . . . . Reused . | . . . . Traps Extracted . | . . . . Installed . | . . . . Triggered . | . . . . Machines | -11 -10 -10 -10 ---------- Run | Yrd Mat Min Exi Machines Disabled . | . . . . Max in Single Turn . | . . . . Machines Repaired . | . . . . Machines Dismantled . | . . . . Machines Sabotaged . | . . . . Overloaded Fab Kills . | . . . . Hacking | -11 -10 -10 -10 --------- Run | Yrd Mat Min Exi Machines Accessed 2 | . . . 2 Terminals . | . . . . Fabricators . | . . . . Repair Stations . | . . . . Recycling Units . | . . . . Scanalyzers . | . . . . Garrison Access . | . . . . Total Hacks 5 | . . . 5 Successful 5 | . . . 5 Failed . | . . . . Catastrophic . | . . . . Database Lockouts . | . . . . Manual 1 | . . . 1 Terminals . | . . . . Fabricators . | . . . . Repair Stations . | . . . . Recycling Units . | . . . . Scanalyzers . | . . . . Garrison Access . | . . . . Terminal Hacks 5 | . . . 5 Record 4 | . . . 4 Proto ID Catalog 1 | . . . 1 Fabricator Hacks . | . . . . Repair Station Hacks . | . . . . Recycling Unit Hacks . | . . . . Scanalyzer . | . . . . Garrison Access Hacks . | . . . . Unauthorized Hacks . | . . . . Terminals . | . . . . Fabricators . | . . . . Repair Stations . | . . . . Recycling Units . | . . . . Scanalyzers . | . . . . Garrison Access . | . . . . Data Cores Recovered . | . . . . Used . | . . . . Hacking Detections . | . . . . Full Trace Events . | . . . . Feedback Events . | . . . . Feedback Blocked . | . . . . Robot Schematics Acquired . | . . . . Robots Built . | . . . . Authchips . | . . . . Time . | . . . . Total Robot Build Rating . | . . . . Part Schematics Acquired . | . . . . Parts Built . | . . . . Authchips . | . . . . Time . | . . . . Total Part Build Rating . | . . . . Part Studies Acquired . | . . . . Parts Repaired . | . . . . Time . | . . . . Parts Recycled . | . . . . Recycled Matter . | . . . . Retrieved Matter . | . . . . Retrieved Components . | . . . . Parts Scanalyzed . | . . . . Part Schematics Acquired . | . . . . Parts Damaged . | . . . . Bothacking | -11 -10 -10 -10 ------------ Run | Yrd Mat Min Exi Used RIF Installer . | . . . . Robots Hacked . | . . . . Non-combat . | . . . . Combat . | . . . . Robot Hacks Applied . | . . . . Relay Couplers Released . | . . . . Fabnet Peak Effective % . | . . . . Robots Rewired . | . . . . Allies Hacked . | . . . . Hacks Repelled . | . . . . Allies | -11 -10 -10 -10 -------- Run | Yrd Mat Min Exi Total Allies . | . . . . Largest Group . | . . . . Highest-Rated Group . | . . . . Highest-Rated Ally . | . . . . Total Orders . | . . . . Ally Attacks . | . . . . Total Damage . | . . . . Kills . | . . . . Allies Corrupted . | . . . . Allies Melted . | . . . . Intel | -11 -10 -10 -10 ------- Run | Yrd Mat Min Exi Active Infowar (turns) 66 | . 17 49 . ECM 66 | . 17 49 . Robot Analysis Total . | . . . . Derelict Logs Recovered 1 | . . 1 . Drone Launches . | . . . . Drone Recoveries . | . . . . Exploration | -11 -10 -10 -10 ------------- Run | Yrd Mat Min Exi Turns Passed 542 | 15 73 100 354 Spaces Moved 627 | 29 134 156 308 Core 627 | 29 134 156 308 Treads . | . . . . Legs . | . . . . Wheels . | . . . . Hover . | . . . . Flight . | . . . . Fastest Speed 50 | 50 50 50 50 Average Speed 78 | 50 50 50 107 Slowest Speed 350 | 50 50 50 350 Overloaded Moves . | . . . . Propulsion Burnouts . | . . . . Robots Hopped . | . . . . Potential Cave-ins 33 | . . . 33 Cave-ins Triggered 3 | . . . 3 Exploration Rate (%) 32 | 3 30 36 61 Regions Visited 3 Branch Regions 2 Pre-discovered Areas 1 | . . . 1 Known Exits Taken . | . . . . Unknown Exits Taken 3 | 1 1 1 . Scrap Searched 1 | . . 1 . Spaces Dug 43 | . . . 43 Terrain Destroyed 64 | . . . 64 Melee . | . . . . Projectile 5 | . . . 5 AOE 59 | . . . 59 Terrain Rammed . | . . . . Walls Destroyed . | . . . . Machines Disabled . | . . . . Actions | -11 -10 -10 -10 --------- Run | Yrd Mat Min Exi Total 665 | 29 138 177 321 Wait 24 | . . 22 2 Move 621 | 28 133 155 305 Hop . | . . . . Pick Up 6 | 1 4 . 1 Fast Attach 1 | . 1 . . Attach 2 | . . . 2 Detach 1 | . . . 1 Swap . | . . . . Drop 2 | . . . 2 Fire 5 | . . . 5 Melee . | . . . . Ram . | . . . . Kick . | . . . . Crush . | . . . . Escape Stasis 3 | . . . 3 Rewire . | . . . . Trap . | . . . . Miscellaneous . | . . . . Route ------- -11/Scrapyard -10/Materials -10/Mines (discovered 2 exits: [*Mat] / *Exi) -10/Exiles (discovered 1 exit: [*Min]) History --------- Turn | Location | Event 6 | -11/Scrapyard | Discovered new exit (range 15) 16 | -11/Scrapyard | Entered Materials 68 | -10/Materials | Discovered new exit (range 7) 89 | -10/Materials | Entered Mines 93 | -10/Mines | Met a Derelict bent on vengeance 96 | -10/Mines | Received a Rocket Launcher from a helpful Derelict 150 | -10/Mines | Discovered new exit (range 6) 185 | -10/Mines | Deemed a non-threat by the Exiles lab entrance 185 | -10/Mines | Discovered new exit (range 5) 189 | -10/Mines | Entered Exiles 201 | -10/Exiles | Met 8R-AWN 211 | -10/Exiles | Met EX-HEX 225 | -10/Exiles | Met EX-BIN 231 | -10/Exiles | Aligned with FarCom system 232 | -10/Exiles | Given EX-Vault access code 244 | -10/Exiles | Opened EX-Vault 248 | -10/Exiles | Found YOLO Cannon 259 | -10/Exiles | Warned to stay clear of 0b10 Research branches 275 | -10/Exiles | Met EX-DEC 279 | -10/Exiles | Learned location of Zion (-7) 293 | -10/Exiles | Discovered new exit (range 14) 307 | -10/Exiles | Build established: Mutant 459 | -10/Exiles | Crushed by falling debris 463 | -10/Exiles | Crushed by falling debris 464 | -10/Exiles | Core integrity fell below 50% 518 | -10/Exiles | Crushed by falling debris 519 | -10/Exiles | Core integrity fell below 20% 543 | -10/Exiles | Destroyed self with YOLO Cannon Last Messages --------------- somewhere out beyond the Upper Caves. >>Record "MSG003537-01*" PINNED - Until our FarCom is fully operational, I strongly recommend anyone spending a while in 0b10 bring along sensors with decent range to avoid running into patrols. A Signal Interpreter is optional since I know you're all smart enough to figure out what most of the blips are by watching their behavior for a short while. >>Record "MSG004902-01*" PINNED - I saw a Programmer snooping around in the Mines recently, it's only a matter of time before they find us. We might need to prioritize getting out of here and finding a better environment less hostile to science. EXIT=FOUND The unstable cave ceiling collapses. Crushed by falling debris. The unstable cave ceiling collapses. Crushed by falling debris. [Achievement: This Is My Hole] The unstable cave ceiling collapses. Crushed by falling debris. Map ----- +----------------------------------------------------+ | ??????????????????????????????????????????? | | ??????????????????????????????????????????? | | ??????????????????????????????????????????? | | ??????????????????????????????????????????? | | ??????????????????????????????????????????? | | ??????????????????????????????????????????? | | ??????????????????????????????????????????? | | ??????????????????????????????????????????? | | ??????????????????????????????????????????? | | ??????????????????????????????????????????? | | ??????????????????????????????????????????? | | ??????????????????????????????????????????? | | ??????????????#######?????????????????????? | | ?????????????## ##????????????????????? | | ?????????????# ;;;;;#????????????????????? | | ?????????????# ; ;#????????????????????? | | ?????????????# ; #####????????????????? | | ????????????## < ; ##???????????????? | | ????????????# ;;; #???????????????? | | ????????????# #???????????????? | | ????????????# ;; #???????????????? | | ????????????# ; ##???????????????? | | ????????????# ####????????????????? | | ????????????## ; #????????????####### | | ?????????????####; #######??????#!!! "# | | ?????????????????#@ #""##?????# "# | | ?????????????????## #?????# "# | | ??????????????????##" ##???## ""# | | ??????????????????#"" #####" ""# | | ??????????????????#### ##" ""? | | ?????????????????????## #"" #?? | | ??????????????????????#"## #?? | | ??????????????????????####### ##? | | ????????????????????????????### "#? | | ??????????????????????########" ## | | ??????????????????????# !!""""" | | ??????????????????????#! "###"" | | ??????????????????????#! "#?##" | | ??????????????????????#! ##??#" | | ??????????????????????# !""""""###???#"# | | ??????????????????????#########??????#### | | ????????????????????????????????????????### | | ??????????????????????????????????????????# | | ??????????????????????????????????????????? | | ??????????????????????????????????????????? | | ??????????????????????????????????????????? | | ??????????????????????????????????????????? | | ??????????????????????????????????????????? | | ??????????????????????????????????????????? | | ??????????????????????????????????????????? | +----------------------------------------------------+ Best States ------------- Heat Dissipation 25 Energy Generation 5 Energy Capacity 100 Matter Stores 300 Matter Capacity 300 Sight Range 16 Terrain Scan Density 10 ECM Strength 1 Evasion (%) 50 Item Schematics ----------------- None Robot Schematics ------------------ None Fabricated ------------ Nothing Repaired ---------- Nothing Studied --------- None Alien Tech Used ----------------- None Achievements -------------- This Is My Hole Challenges ------------ None Game ------ Seed CoolingDeepExtrapolator Manual? 0 Play Time 00:08:11 Cumulative 22.4 hours Start 2025.11.10 @ 14:48:57 End 2025.11.10 @ 14:56:48 Sessions 1 Manual Loads 0 Difficulty Rogue Special Mode None Game No. 22 Rogue 22 Adventurer 0 Explorer 0 Win Type - Total 1 Types 1/0/0/0/0/0/0/0/0/0 Lore% 15 Gallery% 21 Achievement% 24 Wizard Run 0 Options --------- Layout 0 ASCII 0 Keyboard 0 Movement Arrows Keybinds 0 Fullscreen 2 Font 18/SmallcapsGlow Map View 76x50 Zoom Use 0% Tactical HUD 0 Map Filters NONE Filters NONE Steam 1 RUN: e316e0d0-6749-47e0-8464-1a3b20518c4e